fUST/lending_fUST_20240826
["ID","MTS","AMOUNT","RATE_DAILY","PERIOD"]
[336064322,1724686253044,-500.0,0.00012057,2]
[336064323,1724686253054,-500.0,0.00012057,2]
[336064324,1724686253064,-500.0,0.00012057,2]
[336064326,1724686253073,-500.0,0.00012057,2]
[336064327,1724686253083,-500.0,0.00012057,2]
[336064328,1724686253091,-525.94,0.00012057,2]
[336064329,1724686253101,-900.34,0.00012057,2]
[336064330,1724686253111,-500.0,0.00012057,2]
[336064331,1724686253121,-500.0,0.00012057,2]
[336064332,1724686253131,-500.0,0.00012058,2]
[336064333,1724686253142,-761.59,0.00012058,2]
[336064334,1724686253152,-500.0,0.00012058,2]
[336064335,1724686253162,-500.0,0.00012058,2]
[336064336,1724686253171,-500.0,0.00012058,2]
[336064337,1724686253181,-433.24407503,0.00012058,2]
[336064338,1724686253190,-575.4,0.00012058,2]
[336064339,1724686253199,-500.0,0.00012058,2]
[336064340,1724686253209,-629.96,0.00012058,2]
[336064341,1724686253218,-500.0,0.00012058,2]
[336064342,1724686253228,-500.58120197,0.00012058,2]
[336064343,1724686253237,-642.64,0.00012058,2]
[336064344,1724686253246,-500.0,0.00012058,2]
[336064345,1724686253255,-500.0,0.00012058,2]
[336064346,1724686253264,-500.0,0.00012058,2]
[336064347,1724686253273,-572.68,0.00012058,2]
[336064348,1724686253282,-500.0,0.00012058,2]
[336064349,1724686253292,-500.0,0.00012058,2]
[336064350,1724686253301,-500.67691143,0.00012058,2]
[336064351,1724686253310,-500.0,0.00012058,2]
[336064352,1724686253319,-500.0,0.00012058,2]
[336064353,1724686253328,-508.24,0.00012058,2]
[336064354,1724686253337,-737.53,0.00012058,2]
[336064355,1724686253346,-500.0,0.00012058,2]
[336064356,1724686253355,-717.36,0.00012058,2]
[336064357,1724686253364,-500.0,0.00012058,2]
[336064358,1724686253374,-500.0,0.00012058,2]
[336064359,1724686253383,-500.0,0.00012058,2]
[336064360,1724686253392,-1169.17,0.00012058,2]
[336064361,1724686253401,-500.0,0.00012058,2]
[336064362,1724686253410,-406.43774861,0.00012058,2]
[336064363,1724686253419,-500.0,0.00012058,2]
[336064364,1724686253428,-500.0,0.00012058,2]
[336064365,1724686253437,-508.09,0.00012058,2]
[336064366,1724686253446,-500.0,0.00012058,2]
[336064367,1724686253455,-638.77,0.00012058,2]
[336064368,1724686253465,-500.0,0.00012058,2]
[336064369,1724686253474,-500.0,0.00012058,2]
[336064370,1724686253483,-379.57396527,0.00012058,2]
[336064371,1724686253492,-841.04,0.00012058,2]
[336064372,1724686253501,-500.0,0.00012058,2]
[336064373,1724686253510,-716.32,0.00012058,2]
[336064374,1724686253518,-568.5,0.00012058,2]
[336064375,1724686253527,-500.0,0.00012058,2]
[336064376,1724686253536,-568.37,0.00012058,2]
[336064377,1724686253545,-500.0,0.00012058,2]
[336064378,1724686253554,-866.85,0.00012058,2]
[336064379,1724686253563,-500.0,0.00012058,2]
[336064380,1724686253572,-692.07,0.00012058,2]
[336064381,1724686253582,-554.61,0.00012058,2]
[336064382,1724686253591,-500.0,0.00012058,2]
[336064383,1724686253600,-690.36,0.00012058,2]
[336064384,1724686253610,-826.76,0.00012058,2]
[336064385,1724686253619,-500.0,0.00012058,2]
[336064386,1724686253628,-151.0,0.00012058,2]
[336064387,1724686253637,-500.0,0.00012058,2]
[336064388,1724686253648,-830.12,0.00012058,2]
[336064389,1724686253658,-3572.942446,0.00012058,2]
[336064390,1724686253669,-852.72,0.00012058,2]
[336064391,1724686253677,-3572.942446,0.00012058,2]
[336064392,1724686253686,-562.85,0.00012058,2]
[336064393,1724686253695,-1294.49,0.00012058,2]
[336064394,1724686253705,-500.0,0.00012058,2]
[336064395,1724686253715,-500.0,0.00012058,2]
[336064396,1724686253724,-500.0,0.00012058,2]
[336064397,1724686253733,-800.28,0.00012058,2]
[336064398,1724686253742,-500.0,0.00012058,2]
[336064399,1724686253751,-571.11,0.00012058,2]
[336064400,1724686253760,-500.0,0.00012058,2]
[336064401,1724686253770,-534.57,0.00012058,2]
[336064402,1724686253779,-709.65,0.00012058,2]
[336064403,1724686253788,-500.0,0.00012058,2]
[336064404,1724686253798,-552.56,0.00012058,2]
[336064405,1724686253807,-151.0,0.00012058,2]
[336064406,1724686253817,-500.0,0.00012058,2]
[336064407,1724686253827,-500.0,0.00012058,2]
[336064408,1724686253836,-1408.504717,0.00012058,2]
[336064409,1724686253845,-596.35,0.00012058,2]
[336064410,1724686253855,-1408.504717,0.00012058,2]
[336064411,1724686253865,-900.8,0.00012058,2]
[336064412,1724686253874,-500.0,0.00012058,2]
[336064413,1724686253883,-500.0,0.00012058,2]
[336064414,1724686253892,-251.349124,0.00012058,2]
[336064415,1724686253904,-251.349124,0.00012058,2]
[336064416,1724686253914,-151.0,0.00012058,2]
[336064417,1724686253925,-537.45,0.00012058,2]
[336064418,1724686253935,-500.0,0.00012058,2]
[336064419,1724686253947,-483.613202,0.00012058,2]
[336064420,1724686253957,-500.0,0.00012058,2]
[336064421,1724686253967,-500.0,0.00012058,2]
[336064422,1724686253976,-483.613202,0.00012058,2]
[336064423,1724686253988,-500.0,0.00012058,2]
[336064424,1724686253998,-500.0,0.00012058,2]
[336064425,1724686254010,-174.928632,0.00012058,2]
[336064426,1724686254020,-174.928632,0.00012058,2]
[336064427,1724686254032,-605.87,0.00012058,2]
[336064428,1724686254043,-500.0,0.00012058,2]
[336064429,1724686254054,-922.71,0.00012058,2]
[336064430,1724686254064,-534.93,0.00012058,2]
[336064431,1724686254074,-542.13,0.00012058,2]
[336064432,1724686254084,-500.0,0.00012058,2]
[336064433,1724686254093,-500.0,0.00012058,2]
[336064434,1724686254103,-530.36907408,0.00012058,2]
[336064435,1724686254112,-227.08342233,0.00012058,2]
[336064436,1724686254122,-573.27,0.00012058,2]
[336064437,1724686254132,-500.0,0.00012058,2]
[336064438,1724686254141,-505.77,0.00012058,2]
[336064439,1724686254152,-748.61,0.00012058,2]
[336064440,1724686254163,-500.0,0.00012059,2]
[336064441,1724686254172,-282.101135,0.00012059,2]
[336064442,1724686254184,-282.101135,0.00012059,2]
[336064443,1724686254193,-624.88,0.0001206,2]
[336064444,1724686254203,-631.05,0.0001206,2]
[336064445,1724686254212,-1050.90246671,0.00012121,2]
[336064446,1724686254223,-8850.44161835,0.00012163,2]
[336064447,1724686254235,-397.34780111,0.00012168,2]
[336064448,1724686254246,-239106.29052315,0.000122,2]
[336064449,1724686254560,-906.84446726,0.000122,2]
[336064450,1724686256786,-14535.807781,0.000122,2]
[336064451,1724686256798,-8528.97828937,0.000122,2]
[336064452,1724686256809,-53668.52812955,0.000122,2]
[336064453,1724686256846,-1506.20297887,0.000122,2]
[336064454,1724686256860,-24058.23260017,0.000122,2]
[336064455,1724686256952,-500.0,0.00011409,2]
[336064456,1724686256962,-49388.45003263,0.000122,2]
[336064457,1724686256972,-500.0,0.0001223,2]
[336064458,1724686256983,-500.0,0.0001223,2]
[336064459,1724686256992,-1734.77,0.0001223,2]
[336064460,1724686257001,-500.0,0.0001223,2]
[336064461,1724686257011,-500.0,0.0001223,2]
[336064462,1724686257020,-500.0,0.0001223,2]
[336064463,1724686257030,-500.0,0.0001223,2]
[336064464,1724686257039,-323.63,0.0001223,2]
[336064465,1724686257050,-1988.69459985,0.00012231,2]
[336064466,1724686257059,-3000.0,0.00012231,2]
[336064467,1724686257069,-162.865851,0.00012231,2]
[336064468,1724686257079,-757.022657,0.00012231,2]
[336064469,1724686257091,-757.022657,0.00012231,2]
[336064470,1724686257101,-1947.7553,0.00012231,2]
[336064471,1724686257111,-1947.7553,0.00012231,2]
[336064472,1724686257122,-151.0,0.00012231,2]
[336064473,1724686257133,-211.627593,0.00012231,2]
[336064474,1724686257143,-211.627593,0.00012231,2]
[336064475,1724686257153,-241.119891,0.00012231,2]
[336064476,1724686257163,-241.119891,0.00012231,2]
[336064477,1724686257173,-289.472047,0.00012231,2]
[336064478,1724686257183,-151.0,0.00012231,2]
[336064479,1724686257193,-1866.407252,0.00012231,2]
[336064480,1724686257203,-1866.407252,0.00012231,2]
[336064481,1724686257214,-415.233106,0.00012231,2]
[336064482,1724686257224,-415.233106,0.00012231,2]
[336064483,1724686257234,-1735.588527,0.00012231,2]
[336064484,1724686257243,-1735.588527,0.00012231,2]
[336064485,1724686257253,-151.0,0.00012231,2]
[336064486,1724686257263,-2133.01382,0.00012231,2]
[336064487,1724686257273,-2133.01382,0.00012231,2]
[336064488,1724686257283,-211.610433,0.00012231,2]
[336064489,1724686257293,-211.610433,0.00012231,2]
[336064490,1724686257303,-151.0,0.00012231,2]
[336064491,1724686257312,-1583.581172,0.00012231,2]
[336064492,1724686257321,-1583.581172,0.00012231,2]
[336064493,1724686257331,-151.0,0.00012231,2]
[336064494,1724686257341,-151.0,0.00012231,2]
[336064495,1724686257351,-500.0,0.00012284,2]
[336064496,1724686257361,-500.0,0.00012321,2]
[336064497,1724686257371,-1000.0,0.00012321,2]
[336064498,1724686257381,-819.27644615,0.00012328,5]
[336064499,1724686257391,-468.26891436,0.00012328,2]
[336064500,1724686257400,-500.0,0.00012328,2]
[336064501,1724686257410,-500.0,0.00012328,2]
[336064502,1724686257419,-151.0,0.00012328,2]
[336064503,1724686257429,-652.67,0.00012328,2]
[336064504,1724686257438,-151.0,0.00012328,2]
[336064505,1724686257448,-2066.95,0.00012328,2]
[336064506,1724686257459,-151.0,0.00012328,2]
[336064507,1724686257468,-908.26,0.00012328,2]
[336064508,1724686257478,-775.54,0.00012328,2]
[336064509,1724686257487,-151.0,0.00012328,2]
[336064510,1724686257497,-775.01,0.00012328,2]
[336064511,1724686257506,-151.0,0.00012328,2]
[336064512,1724686257516,-151.0,0.00012328,2]
[336064513,1724686257526,-811.545856,0.00012328,2]
[336064514,1724686257535,-500.0,0.00012328,2]
[336064515,1724686257544,-500.0,0.00012328,2]
[336064516,1724686257554,-811.545856,0.00012328,2]
[336064517,1724686257565,-715.22,0.00012328,2]
[336064518,1724686257575,-500.0,0.00012328,2]
[336064519,1724686257586,-948.3,0.00012328,2]
[336064520,1724686257595,-590.81,0.00012328,2]
[336064521,1724686257606,-500.0,0.00012328,2]
[336064522,1724686257616,-1099.292282,0.00012328,2]
[336064523,1724686257627,-500.0,0.00012328,2]
[336064524,1724686257639,-1099.292282,0.00012328,2]
[336064525,1724686257652,-500.0,0.00012328,2]
[336064526,1724686257663,-18649.43,0.00012328,2]
[336064527,1724686257672,-566.99,0.00012328,2]
[336064528,1724686257682,-884.2,0.00012328,2]
[336064529,1724686257693,-500.0,0.00012328,2]
[336064530,1724686257704,-1022.06,0.00012328,2]
[336064531,1724686257713,-500.0,0.00012328,2]
[336064532,1724686257723,-500.0,0.00012328,2]
[336064533,1724686257732,-995.523728,0.00012328,2]
[336064534,1724686257746,-995.523728,0.00012328,2]
[336064535,1724686257756,-525.62,0.00012328,2]
[336064536,1724686257766,-501.72,0.00012328,2]
[336064537,1724686257775,-500.0,0.00012328,2]
[336064538,1724686257784,-500.0,0.00012328,2]
[336064539,1724686257794,-500.0,0.00012328,2]
[336064540,1724686257803,-1949.963927,0.00012328,2]
[336064541,1724686257812,-1949.963927,0.00012328,2]
[336064542,1724686257821,-500.0,0.00012328,2]
[336064543,1724686257967,-942.92,0.00012328,2]
[336064544,1724686257981,-523.78,0.00012329,2]
[336064545,1724686257991,-500.0,0.00012329,2]
[336064546,1724686258002,-903.64,0.00012329,2]
[336064547,1724686258012,-500.0,0.00012329,2]
[336064548,1724686258022,-500.0,0.00012329,2]
[336064549,1724686258031,-845.34,0.00012329,2]
[336064550,1724686258042,-934.07,0.00012329,2]
[336064551,1724686258053,-500.0,0.00012329,2]
[336064552,1724686258062,-500.0,0.00012329,2]
[336064553,1724686258072,-500.0,0.00012329,2]
[336064554,1724686258083,-564.79,0.00012329,2]
[336064555,1724686258093,-603.72,0.00012329,2]
[336064556,1724686258103,-500.0,0.00012329,2]
[336064557,1724686258114,-524.5,0.00012329,2]
[336064558,1724686258124,-500.0,0.00012329,2]
[336064559,1724686258134,-500.0,0.00012329,2]
[336064560,1724686258144,-500.0,0.00012329,2]
[336064561,1724686258154,-809.88,0.00012329,2]
[336064562,1724686258164,-500.0,0.00012329,2]
[336064563,1724686258173,-500.0,0.00012329,2]
[336064564,1724686258183,-500.0,0.00012329,2]
[336064565,1724686258192,-679.31,0.00012329,2]
[336064566,1724686258202,-641.44,0.00012329,2]
[336064567,1724686258212,-693.38,0.00012329,2]
[336064568,1724686258221,-712.93,0.00012329,2]
[336064569,1724686258230,-744.07,0.00012329,2]
[336064570,1724686258240,-500.0,0.00012329,2]
[336064571,1724686258250,-786.68,0.00012329,2]
[336064572,1724686258259,-1011.54,0.00012329,2]
[336064573,1724686258269,-513.65,0.00012329,2]
[336064574,1724686258279,-634.94,0.00012329,2]
[336064575,1724686258288,-500.0,0.00012329,2]
[336064576,1724686258298,-1001.36,0.00012329,2]
[336064577,1724686258308,-500.0,0.00012329,2]
[336064578,1724686258318,-569.68,0.00012329,2]
[336064579,1724686258328,-500.0,0.00012329,2]
[336064580,1724686258341,-1883.01,0.00012329,2]
[336064581,1724686258350,-527.46,0.00012329,2]
[336064582,1724686258360,-500.0,0.00012329,2]
[336064583,1724686258370,-1026.64,0.00012329,2]
[336064584,1724686258378,-633.44,0.00012329,2]
[336064585,1724686258389,-500.0,0.00012329,2]
[336064586,1724686258398,-500.0,0.00012329,2]
[336064587,1724686258408,-500.0,0.00012329,2]
[336064588,1724686258417,-500.0,0.00012329,2]
[336064589,1724686258427,-606.63,0.00012329,2]
[336064590,1724686258438,-1703.92,0.00012329,2]
[336064591,1724686258449,-843.14,0.00012329,2]
[336064592,1724686258463,-984.36,0.00012329,2]
[336064593,1724686258473,-2058.91119,0.00012329,2]
[336064594,1724686258483,-2058.91119,0.00012329,2]
[336064595,1724686258493,-581.6,0.00012329,2]
[336064596,1724686258503,-621.81,0.00012329,2]
[336064597,1724686258513,-571.29,0.00012329,2]
[336064598,1724686258523,-500.0,0.00012329,2]
[336064599,1724686258532,-575.8,0.00012329,2]
[336064600,1724686258541,-500.0,0.00012329,2]
[336064601,1724686258551,-500.0,0.00012329,2]
[336064602,1724686258562,-154.43817,0.00012329,2]
[336064603,1724686258571,-500.0,0.00012329,2]
[336064604,1724686258584,-500.0,0.00012329,2]
[336064605,1724686258596,-154.43817,0.00012329,2]
[336064606,1724686258606,-500.0,0.00012329,2]
[336064607,1724686258616,-1253.34,0.00012329,2]
[336064608,1724686258625,-500.0,0.00012329,2]
[336064609,1724686258635,-151.0,0.00012329,2]
[336064610,1724686258644,-1370.77,0.00012329,2]
[336064611,1724686258654,-500.0,0.00012329,2]
[336064612,1724686258664,-500.0,0.00012329,2]
[336064613,1724686258674,-2271.97,0.00012329,2]
[336064614,1724686258684,-819.14,0.00012329,2]
[336064615,1724686258694,-500.0,0.00012329,2]
[336064616,1724686258704,-1222.01,0.00012329,2]
[336064617,1724686258713,-500.0,0.0001233,2]
[336064618,1724686258722,-500.0,0.0001233,2]
[336064619,1724686258732,-500.0,0.0001233,2]
[336064620,1724686258743,-500.0,0.0001233,2]
[336064621,1724686258756,-500.0,0.0001233,2]
[336064622,1724686258766,-500.0,0.0001233,2]
[336064623,1724686258775,-500.0,0.0001233,2]
[336064624,1724686258785,-500.0,0.0001233,2]
[336064625,1724686258794,-500.0,0.0001233,2]
[336064626,1724686258804,-500.0,0.0001233,2]
[336064627,1724686258813,-500.0,0.0001233,2]
[336064628,1724686258823,-501.13,0.0001233,2]
[336064629,1724686258838,-545.15,0.0001233,2]
[336064630,1724686258847,-500.0,0.0001233,2]
[336064631,1724686258857,-500.0,0.0001233,2]
[336064632,1724686258866,-516.79,0.0001233,2]
[336064633,1724686258875,-500.0,0.0001233,2]
[336064634,1724686258883,-767.01,0.0001233,2]
[336064635,1724686258892,-500.0,0.0001233,2]
[336064636,1724686258904,-500.0,0.0001233,2]
[336064637,1724686258915,-500.0,0.0001233,2]
[336064638,1724686258924,-500.0,0.0001233,2]
[336064639,1724686258934,-500.0,0.0001233,2]
[336064640,1724686258946,-500.0,0.0001233,2]
[336064641,1724686258956,-771.96,0.0001233,2]
[336064642,1724686258967,-500.0,0.0001233,2]
[336064643,1724686258976,-500.0,0.0001233,2]
[336064644,1724686258988,-500.0,0.0001233,2]
[336064645,1724686258998,-500.0,0.0001233,2]
[336064646,1724686259008,-500.0,0.0001233,2]
[336064647,1724686259017,-500.0,0.0001233,2]
[336064648,1724686259027,-500.0,0.0001233,2]
[336064649,1724686259037,-851.37,0.0001233,2]
[336064650,1724686259046,-911.67,0.0001233,2]
[336064651,1724686259056,-500.0,0.0001233,2]
[336064652,1724686259065,-500.0,0.0001233,2]
[336064653,1724686259074,-500.0,0.0001233,2]
[336064654,1724686259089,-500.0,0.0001233,2]
[336064655,1724686259103,-500.0,0.0001233,2]
[336064656,1724686259112,-820.24,0.0001233,2]
[336064657,1724686259122,-500.0,0.0001233,2]
[336064658,1724686259131,-552.58,0.0001233,2]
[336064659,1724686259141,-500.0,0.0001233,2]
[336064660,1724686259151,-599.34,0.0001233,2]
[336064661,1724686259160,-500.0,0.0001233,2]
[336064662,1724686259169,-500.0,0.0001233,2]
[336064663,1724686259178,-500.0,0.0001233,2]
[336064664,1724686259188,-502.5,0.0001233,2]
[336064665,1724686259198,-500.0,0.0001233,2]
[336064666,1724686259207,-500.0,0.0001233,2]
[336064667,1724686259217,-500.0,0.0001233,2]
[336064668,1724686259226,-750.57,0.0001233,2]
[336064669,1724686259236,-500.0,0.0001233,2]
[336064670,1724686259245,-500.0,0.0001233,2]
[336064671,1724686259254,-500.0,0.0001233,2]
[336064672,1724686259264,-612.14,0.0001233,2]
[336064673,1724686259273,-500.0,0.0001233,2]
[336064674,1724686259282,-500.0,0.0001233,2]
[336064675,1724686259292,-500.0,0.0001233,2]
[336064676,1724686259301,-500.0,0.0001233,2]
[336064677,1724686259311,-778.69,0.0001233,2]
[336064678,1724686259321,-500.0,0.0001233,2]
[336064679,1724686259333,-617.2,0.0001233,2]
[336064680,1724686259346,-500.0,0.0001233,2]
[336064681,1724686259355,-500.0,0.0001233,2]
[336064682,1724686259368,-624.51,0.0001233,2]
[336064683,1724686259384,-585.25,0.0001233,2]
[336064684,1724686259402,-642.3192884,0.0001233,2]
[336064685,1724686259415,-517.24,0.0001233,2]
[336064686,1724686259429,-500.0,0.0001233,2]
[336064687,1724686259443,-500.0,0.0001233,2]
[336064688,1724686259459,-500.0,0.0001233,2]
[336064689,1724686259473,-624.61,0.0001233,2]
[336064690,1724686259488,-782.77,0.0001233,2]
[336064691,1724686259504,-500.0,0.0001233,2]
[336064692,1724686259517,-320.01,0.0001233,2]
[336064693,1724686259531,-500.0,0.0001233,2]
[336064694,1724686259546,-548.05,0.0001233,2]
[336064695,1724686259561,-639.55882069,0.0001233,2]
[336064696,1724686259571,-500.0,0.0001233,2]
[336064697,1724686259588,-500.0,0.0001233,2]
[336064698,1724686259600,-500.0,0.0001233,2]
[336064699,1724686259615,-500.0,0.0001233,2]
[336064700,1724686259629,-500.0,0.0001233,2]
[336064701,1724686259644,-500.0,0.0001233,2]
[336064702,1724686259660,-667.51,0.0001233,2]
[336064703,1724686259674,-656.37,0.0001233,2]
[336064704,1724686259685,-500.0,0.0001233,2]
[336064705,1724686259696,-500.0,0.0001233,2]
[336064706,1724686259711,-500.0,0.0001233,2]
[336064707,1724686259728,-500.0,0.0001233,2]
[336064708,1724686259739,-500.0,0.0001233,2]
[336064709,1724686259755,-542.3,0.0001233,2]
[336064710,1724686259767,-362.74672146,0.0001233,2]
[336064711,1724686259781,-500.0,0.0001233,2]
[336064712,1724686259793,-500.0,0.0001233,2]
[336064713,1724686259805,-500.0,0.0001233,2]
[336064714,1724686259817,-500.0,0.0001233,2]
[336064715,1724686259829,-500.0,0.0001233,2]
[336064716,1724686259846,-501.24786897,0.0001233,2]
[336064717,1724686259857,-500.0,0.0001233,2]
[336064718,1724686259871,-500.0,0.0001233,2]
[336064719,1724686259886,-500.0,0.0001233,2]
[336064720,1724686259899,-500.0,0.00012331,2]
[336064721,1724686259914,-777.21,0.00012331,2]
[336064722,1724686259926,-655.13,0.00012331,2]
[336064723,1724686259938,-570.79,0.00012331,2]
[336064724,1724686259951,-500.0,0.00012331,2]
[336064725,1724686259964,-538.81,0.00012331,2]
[336064726,1724686259976,-745.0,0.00012331,2]
[336064727,1724686259991,-769.22,0.00012331,2]
[336064728,1724686260004,-500.0,0.00012331,2]
[336064729,1724686260016,-570.58,0.00012331,2]
[336064730,1724686260029,-500.0,0.00012331,2]
[336064731,1724686260041,-656.19,0.00012331,2]
[336064732,1724686260054,-500.0,0.00012331,2]
[336064733,1724686260066,-500.0,0.00012331,2]
[336064734,1724686260078,-624.14,0.00012331,2]
[336064735,1724686260093,-500.0,0.00012331,2]
[336064736,1724686260105,-1115.32,0.00012331,2]
[336064737,1724686260117,-500.0,0.00012331,2]
[336064738,1724686260129,-518.77,0.00012331,2]
[336064739,1724686260141,-500.0,0.00012331,2]
[336064740,1724686260158,-603.3,0.00012331,2]
[336064741,1724686260175,-500.0,0.00012331,2]
[336064742,1724686260189,-500.0,0.00012331,2]
[336064743,1724686260205,-873.64,0.00012331,2]
[336064744,1724686260220,-947.75,0.00012331,2]
[336064745,1724686260234,-500.0,0.00012331,2]
[336064746,1724686260248,-736.2,0.00012331,2]
[336064747,1724686260263,-500.0,0.00012331,2]
[336064748,1724686260277,-500.0,0.00012331,2]
[336064749,1724686260289,-500.0,0.00012331,2]
[336064750,1724686260302,-500.0,0.00012331,2]
[336064751,1724686260315,-500.0,0.00012331,2]
[336064752,1724686260328,-525.94,0.00012331,2]
[336064753,1724686260343,-900.34,0.00012331,2]
[336064754,1724686260356,-500.0,0.00012331,2]
[336064755,1724686260369,-500.0,0.00012331,2]
[336064756,1724686260381,-500.0,0.00012332,2]
[336064757,1724686260394,-761.59,0.00012332,2]
[336064758,1724686260406,-500.0,0.00012332,2]
[336064759,1724686260419,-500.0,0.00012332,2]
[336064760,1724686260432,-500.0,0.00012332,2]
[336064761,1724686260444,-575.4,0.00012332,2]
[336064762,1724686260457,-500.0,0.00012332,2]
[336064763,1724686260469,-629.96,0.00012332,2]
[336064764,1724686260482,-500.0,0.00012332,2]
[336064765,1724686260495,-642.64,0.00012332,2]
[336064766,1724686260508,-424.75559775,0.00012332,2]
[336064767,1724686260520,-500.0,0.00012332,2]
[336064768,1724686260532,-500.0,0.00012332,2]
[336064769,1724686260545,-572.68,0.00012332,2]
[336064770,1724686260558,-500.0,0.00012332,2]
[336064771,1724686260575,-500.0,0.00012332,2]
[336064772,1724686260591,-500.0,0.00012332,2]
[336064773,1724686260604,-508.24,0.00012332,2]
[336064774,1724686260618,-737.53,0.00012332,2]
[336064775,1724686260631,-717.36,0.00012332,2]
[336064776,1724686260644,-500.0,0.00012332,2]
[336064777,1724686260658,-500.0,0.00012332,2]
[336064778,1724686260671,-500.0,0.00012332,2]
[336064779,1724686260686,-1169.17,0.00012332,2]
[336064780,1724686260699,-319.552051,0.00012332,2]
[336064781,1724686260712,-704.529628,0.00012332,2]
[336064782,1724686260726,-319.552051,0.00012332,2]
[336064783,1724686260740,-704.529628,0.00012332,2]
[336064784,1724686260754,-508.09,0.00012332,2]
[336064785,1724686260767,-533.70271463,0.00012332,2]
[336064786,1724686260777,-638.77,0.00012332,2]
[336064787,1724686260786,-500.0,0.00012332,2]
[336064788,1724686260796,-500.0,0.00012332,2]
[336064789,1724686260806,-841.04,0.00012332,2]
[336064790,1724686260816,-500.0,0.00012332,2]
[336064791,1724686260825,-716.32,0.00012332,2]
[336064792,1724686260837,-568.5,0.00012332,2]
[336064793,1724686260847,-500.0,0.00012332,2]
[336064794,1724686260856,-568.37,0.00012332,2]
[336064795,1724686260866,-500.0,0.00012332,2]
[336064796,1724686260877,-866.85,0.00012332,2]
[336064797,1724686260888,-500.0,0.00012332,2]
[336064798,1724686260898,-692.07,0.00012332,2]
[336064799,1724686260911,-554.61,0.00012332,2]
[336064800,1724686260922,-500.0,0.00012332,2]
[336064801,1724686260933,-690.36,0.00012332,2]
[336064802,1724686260943,-826.76,0.00012332,2]
[336064803,1724686260954,-500.0,0.00012332,2]
[336064804,1724686260964,-151.0,0.00012332,2]
[336064805,1724686260974,-500.0,0.00012332,2]
[336064806,1724686260987,-830.12,0.00012332,2]
[336064807,1724686260998,-3572.942446,0.00012332,2]
[336064808,1724686261008,-852.72,0.00012332,2]
[336064809,1724686261019,-265.2260881,0.00012332,2]
[336064810,1724686261666,-804.86498997,0.00012332,2]
[336064817,1724686439871,-818.13880886,0.0001026,2]
[336064818,1724686439903,-24900.0,0.00010458,2]
[336064819,1724686439933,-237.29490781,0.00010544,2]
[336064820,1724686439968,-300.0,0.00011408,2]
[336064821,1724686439999,-500.0,0.00011409,2]
[336064822,1724686440031,-595.5,0.00011409,2]
[336064823,1724686440064,-500.0,0.00011409,2]
[336064824,1724686440096,-500.0,0.00011409,2]
[336064825,1724686440128,-500.0,0.00011409,2]
[336064826,1724686440162,-500.0,0.00011409,2]
[336064827,1724686440197,-500.0,0.00011409,2]
[336064828,1724686440221,-500.0,0.00011409,2]